[Event "Titled Tuesday Blitz August 02 Late 2022"]
[White "Makarian, Rudik"]
[Black "Yanchenko, Roman"]
[WhiteFideId "44105681"]
[BlackFideId "4137329"]
[WhiteElo "2403"]
[BlackElo "2514"]
[Result "1/2-1/2"]
[Round "07"]
[TimeControl "180+1"]
[Date "2022.08.02"]
[WhiteClock "0:00:05"]
[BlackClock "0:00:05"]

1. d3 {[%clk 0:03:00]}  d5 {[%clk 0:02:59]} 2. f4 {[%clk 0:03:00]}  Nf6 {[%clk 0:02:59]} 3. Nf3 {[%clk 0:03:00]}  b6 {[%clk 0:02:59]} 4. g3 {[%clk 0:03:01]}  Bb7 {[%clk 0:02:59]} 5. Bg2 {[%clk 0:03:02]}  g6 {[%clk 0:02:59]} 6. O-O {[%clk 0:03:02]}  Bg7 {[%clk 0:03:00]} 7. Ne5 {[%clk 0:02:57]}  Nbd7 {[%clk 0:02:58]} 8. Nc3 {[%clk 0:02:54]}  e6 {[%clk 0:02:55]} 9. Nxd7 {[%clk 0:02:50]}  Qxd7 {[%clk 0:02:56]} 10. e4 {[%clk 0:02:51]}  dxe4 {[%clk 0:02:56]} 11. dxe4 {[%clk 0:02:52]}  O-O-O {[%clk 0:02:54]} 12. Qe2 {[%clk 0:02:48]}  h5 {[%clk 0:02:43]} 13. h3 {[%clk 0:02:34]}  h4 {[%clk 0:02:24]} 14. g4 {[%clk 0:02:34]}  e5 {[%clk 0:02:24]} 15. f5 {[%clk 0:02:14]}  Kb8 {[%clk 0:01:58]} 16. Bg5 {[%clk 0:02:13]}  Qe7 {[%clk 0:01:47]} 17. Nd5 {[%clk 0:01:58]}  Qc5+ {[%clk 0:01:35]} 18. Be3 {[%clk 0:01:53]}  Qd6 {[%clk 0:01:34]} 19. Nxf6 {[%clk 0:01:43]}  Qxf6 {[%clk 0:01:31]} 20. Qc4 {[%clk 0:01:21]}  g5 {[%clk 0:01:22]} 21. Rfd1 {[%clk 0:01:21]}  Qe7 {[%clk 0:01:21]} 22. a4 {[%clk 0:01:17]}  f6 {[%clk 0:01:17]} 23. a5 {[%clk 0:01:14]}  Rxd1+ {[%clk 0:01:16]} 24. Rxd1 {[%clk 0:01:15]}  Rd8 {[%clk 0:01:16]} 25. Ra1 {[%clk 0:01:13]}  Bf8 {[%clk 0:01:13]} 26. c3 {[%clk 0:01:10]}  Qd7 {[%clk 0:01:08]} 27. Kf2 {[%clk 0:01:04]}  Qd3 {[%clk 0:01:02]} 28. Qxd3 {[%clk 0:00:55]}  Rxd3 {[%clk 0:01:03]} 29. Ke2 {[%clk 0:00:50]}  Rd7 {[%clk 0:00:58]} 30. axb6 {[%clk 0:00:48]}  axb6 {[%clk 0:00:59]} 31. Kf3 {[%clk 0:00:30]}  Bc5 {[%clk 0:00:34]} 32. Bxc5 {[%clk 0:00:29]}  bxc5 {[%clk 0:00:34]} 33. Ke3 {[%clk 0:00:27]}  Bc6 {[%clk 0:00:32]} 34. Bf1 {[%clk 0:00:27]}  Kb7 {[%clk 0:00:30]} 35. Bc4 {[%clk 0:00:24]}  Rd8 {[%clk 0:00:29]} 36. Be6 {[%clk 0:00:09]}  Kb6 {[%clk 0:00:29]} 37. Bc4 {[%clk 0:00:07]}  Ra8 {[%clk 0:00:29]} 38. Rd1 {[%clk 0:00:07]}  Rb8 {[%clk 0:00:27]} 39. Bd5 {[%clk 0:00:06]}  Rd8 {[%clk 0:00:25]} 40. c4 {[%clk 0:00:06]}  Ba4 {[%clk 0:00:24]} 41. b3 {[%clk 0:00:05]}  Be8 {[%clk 0:00:23]} 42. Ra1 {[%clk 0:00:05]}  c6 {[%clk 0:00:23]} 43. Be6 {[%clk 0:00:04]}  Rb8 {[%clk 0:00:21]} 44. Kd3 {[%clk 0:00:04]}  Rd8+ {[%clk 0:00:18]} 45. Kc3 {[%clk 0:00:05]}  Kb7 {[%clk 0:00:18]} 46. b4 {[%clk 0:00:03]}  cxb4+ {[%clk 0:00:18]} 47. Kxb4 {[%clk 0:00:03]}  Rd3 {[%clk 0:00:17]} 48. Kc5 {[%clk 0:00:03]}  Rxh3 {[%clk 0:00:17]} 49. Rb1+ {[%clk 0:00:02]}  Kc7 {[%clk 0:00:17]} 50. Ra1 {[%clk 0:00:03]}  Rb3 {[%clk 0:00:17]} 51. Ra8 {[%clk 0:00:03]}  Rb8 {[%clk 0:00:17]} 52. Ra7+ {[%clk 0:00:02]}  Rb7 {[%clk 0:00:18]} 53. Ra3 {[%clk 0:00:03]}  Bd7 {[%clk 0:00:17]} 54. Rd3 {[%clk 0:00:03]}  Bc8 {[%clk 0:00:17]} 55. Rd6 {[%clk 0:00:03]}  Bxe6 {[%clk 0:00:09]} 56. fxe6 {[%clk 0:00:04]}  h3 {[%clk 0:00:08]} 57. Rd7+ {[%clk 0:00:04]}  Kc8 {[%clk 0:00:08]} 58. Rxb7 {[%clk 0:00:03]}  Kxb7 {[%clk 0:00:07]} 59. e7 {[%clk 0:00:04]}  h2 {[%clk 0:00:08]} 60. e8=Q {[%clk 0:00:05]}  h1=Q {[%clk 0:00:08]} 61. Qxc6+ {[%clk 0:00:05]}  Kb8 {[%clk 0:00:09]} 62. Qb6+ {[%clk 0:00:04]}  Kc8 {[%clk 0:00:09]} 63. Qc6+ {[%clk 0:00:04]}  Kb8 {[%clk 0:00:09]} 64. Kd6 {[%clk 0:00:04]}  Qd1+ {[%clk 0:00:08]} 65. Qd5 {[%clk 0:00:04]}  Qxg4 {[%clk 0:00:08]} 66. Qg8+ {[%clk 0:00:03]}  Kb7 {[%clk 0:00:08]} 67. Qd5+ {[%clk 0:00:04]}  Kb8 {[%clk 0:00:08]} 68. Qb5+ {[%clk 0:00:04]}  Kc8 {[%clk 0:00:07]} 69. c5 {[%clk 0:00:03]}  Qd1+ {[%clk 0:00:06]} 70. Ke6 {[%clk 0:00:03]}  Qd8 {[%clk 0:00:06]} 71. Qa6+ {[%clk 0:00:02]}  Kb8 {[%clk 0:00:06]} 72. Qd6+ {[%clk 0:00:02]}  Qc7 {[%clk 0:00:05]} 73. Kxf6 {[%clk 0:00:01]}  g4 {[%clk 0:00:05]} 74. Qd5 {[%clk 0:00:01]}  g3 {[%clk 0:00:05]} 75. Qg8+ {[%clk 0:00:02]}  Kb7 {[%clk 0:00:05]} 76. Qxg3 {[%clk 0:00:03]}  Qc6+ {[%clk 0:00:06]} 77. Kf5 {[%clk 0:00:03]}  Qd7+ {[%clk 0:00:05]} 78. Kf6 {[%clk 0:00:02]}  Qd8+ {[%clk 0:00:05]} 79. Kf5 {[%clk 0:00:03]}  Qf8+ {[%clk 0:00:05]} 80. Ke6 {[%clk 0:00:03]}  Qe8+ {[%clk 0:00:06]} 81. Kd5 {[%clk 0:00:03]}  Qc6+ {[%clk 0:00:06]} 82. Kc4 {[%clk 0:00:04]}  Qxe4+ {[%clk 0:00:06]} 83. Kb5 {[%clk 0:00:04]}  Qb1+ {[%clk 0:00:06]} 84. Kc4 {[%clk 0:00:05]}  Qa2+ {[%clk 0:00:05]} 85. Kb5 {[%clk 0:00:04]}  Qe2+ {[%clk 0:00:04]} 86. Kb4 {[%clk 0:00:04]}  Qd2+ {[%clk 0:00:03]} 87. Qc3 {[%clk 0:00:03]}  Qxc3+ {[%clk 0:00:03]} 88. Kxc3 {[%clk 0:00:04]}  Kc7 {[%clk 0:00:03]} 89. Kd3 {[%clk 0:00:04]}  Kd7 {[%clk 0:00:03]} 90. Ke4 {[%clk 0:00:04]}  Kc6 {[%clk 0:00:04]} 91. Kxe5 {[%clk 0:00:05]}  Kxc5 {[%clk 0:00:05]} 1/2-1/2


[Site "https://www.chess.com"]

[Event "Titled Tuesday Blitz August 02 Late 2022"]
[White "Nakamura, Hikaru"]
[Black "Andreikin, Dmitry"]
[WhiteFideId "2016192"]
[BlackFideId "4158814"]
[WhiteElo "2850"]
[BlackElo "2736"]
[Result "1/2-1/2"]
[Round "07"]
[TimeControl "180+1"]
[Date "2022.08.02"]
[WhiteClock "0:00:27"]
[BlackClock "0:00:04"]

1. Nf3 {[%clk 0:03:00]}  d5 {[%clk 0:02:59]} 2. e3 {[%clk 0:03:00]}  c5 {[%clk 0:02:56]} 3. b3 {[%clk 0:02:59]}  Nc6 {[%clk 0:02:54]} 4. Bb2 {[%clk 0:03:00]}  Nf6 {[%clk 0:02:54]} 5. Bb5 {[%clk 0:02:59]}  Bd7 {[%clk 0:02:53]} 6. O-O {[%clk 0:02:58]}  a6 {[%clk 0:02:51]} 7. Bxc6 {[%clk 0:02:58]}  Bxc6 {[%clk 0:02:52]} 8. Ne5 {[%clk 0:02:59]}  Rc8 {[%clk 0:02:52]} 9. d3 {[%clk 0:02:59]}  g6 {[%clk 0:02:49]} 10. c4 {[%clk 0:02:39]}  Bg7 {[%clk 0:02:48]} 11. Nd2 {[%clk 0:02:39]}  O-O {[%clk 0:02:47]} 12. Qe2 {[%clk 0:02:39]}  dxc4 {[%clk 0:02:38]} 13. Ndxc4 {[%clk 0:02:30]}  Bd5 {[%clk 0:02:38]} 14. e4 {[%clk 0:02:12]}  Be6 {[%clk 0:02:38]} 15. f4 {[%clk 0:02:09]}  b5 {[%clk 0:02:18]} 16. Ne3 {[%clk 0:02:09]}  Nd7 {[%clk 0:02:01]} 17. Nxd7 {[%clk 0:01:56]}  Bxd7 {[%clk 0:02:02]} 18. Bxg7 {[%clk 0:01:55]}  Kxg7 {[%clk 0:02:03]} 19. Rad1 {[%clk 0:01:55]}  f6 {[%clk 0:02:00]} 20. d4 {[%clk 0:01:52]}  c4 {[%clk 0:01:52]} 21. f5 {[%clk 0:01:45]}  c3 {[%clk 0:01:46]} 22. b4 {[%clk 0:01:36]}  a5 {[%clk 0:01:38]} 23. a3 {[%clk 0:01:36]}  axb4 {[%clk 0:01:37]} 24. axb4 {[%clk 0:01:37]}  Qb6 {[%clk 0:01:35]} 25. Rd3 {[%clk 0:01:30]}  Qd6 {[%clk 0:01:31]} 26. fxg6 {[%clk 0:01:12]}  hxg6 {[%clk 0:01:30]} 27. Nf5+ {[%clk 0:01:10]}  Bxf5 {[%clk 0:01:20]} 28. exf5 {[%clk 0:01:10]}  Rh8 {[%clk 0:01:13]} 29. h3 {[%clk 0:01:04]}  Rh4 {[%clk 0:01:03]} 30. fxg6 {[%clk 0:00:46]}  c2 {[%clk 0:00:57]} 31. Qd2 {[%clk 0:00:38]}  Rc4 {[%clk 0:00:46]} 32. Rc1 {[%clk 0:00:36]}  Rhxd4 {[%clk 0:00:38]} 33. Rxd4 {[%clk 0:00:35]}  Qxd4+ {[%clk 0:00:35]} 34. Qxd4 {[%clk 0:00:35]}  Rxd4 {[%clk 0:00:36]} 35. Rxc2 {[%clk 0:00:35]}  Rxb4 {[%clk 0:00:35]} 36. Rc7 {[%clk 0:00:31]}  Re4 {[%clk 0:00:35]} 37. Rb7 {[%clk 0:00:31]}  b4 {[%clk 0:00:33]} 38. Kf2 {[%clk 0:00:32]}  Kxg6 {[%clk 0:00:33]} 39. Kf3 {[%clk 0:00:32]}  f5 {[%clk 0:00:33]} 40. g4 {[%clk 0:00:32]}  e6 {[%clk 0:00:32]} 41. gxf5+ {[%clk 0:00:31]}  exf5 {[%clk 0:00:29]} 42. Rb8 {[%clk 0:00:29]}  Rh4 {[%clk 0:00:27]} 43. Kg3 {[%clk 0:00:28]}  Rc4 {[%clk 0:00:27]} 44. h4 {[%clk 0:00:28]}  Rg4+ {[%clk 0:00:26]} 45. Kh3 {[%clk 0:00:29]}  Kf6 {[%clk 0:00:23]} 46. Rb6+ {[%clk 0:00:27]}  Ke5 {[%clk 0:00:23]} 47. h5 {[%clk 0:00:28]}  Rg5 {[%clk 0:00:10]} 48. Rb5+ {[%clk 0:00:27]}  Kf6 {[%clk 0:00:08]} 49. Rb6+ {[%clk 0:00:27]}  Ke5 {[%clk 0:00:08]} 50. Rb5+ {[%clk 0:00:27]}  Kf6 {[%clk 0:00:04]} 51. Rb6+ {[%clk 0:00:27]}  Ke5 {[%clk 0:00:04]} 1/2-1/2


[Site "https://www.chess.com"]

[Event "Titled Tuesday Blitz August 02 Late 2022"]
[White "Nazari, Arad"]
[Black "Szabo, Marcell"]
[WhiteFideId "12577324"]
[BlackFideId "2072033"]
[WhiteElo "2129"]
[BlackElo "1777"]
[Result "1-0"]
[Round "07"]
[TimeControl "180+1"]
[Date "2022.08.02"]
[WhiteClock "0:02:03"]
[BlackClock "0:01:47"]

1. d4 {[%clk 0:03:00]}  Nf6 {[%clk 0:02:58]} 2. c4 {[%clk 0:03:01]}  e5 {[%clk 0:02:58]} 3. dxe5 {[%clk 0:02:59]}  Ng4 {[%clk 0:02:59]} 4. Bf4 {[%clk 0:02:54]}  Nc6 {[%clk 0:02:58]} 5. Nf3 {[%clk 0:02:54]}  Bb4+ {[%clk 0:02:58]} 6. Nbd2 {[%clk 0:02:51]}  Qe7 {[%clk 0:02:59]} 7. e3 {[%clk 0:02:51]}  Ngxe5 {[%clk 0:02:59]} 8. Nxe5 {[%clk 0:02:52]}  Nxe5 {[%clk 0:03:00]} 9. Be2 {[%clk 0:02:53]}  d6 {[%clk 0:03:00]} 10. O-O {[%clk 0:02:53]}  Bxd2 {[%clk 0:03:01]} 11. Qxd2 {[%clk 0:02:54]}  b6 {[%clk 0:03:00]} 12. b4 {[%clk 0:02:50]}  Bb7 {[%clk 0:03:00]} 13. c5 {[%clk 0:02:45]}  dxc5 {[%clk 0:02:53]} 14. bxc5 {[%clk 0:02:39]}  Qxc5 {[%clk 0:02:40]} 15. Rac1 {[%clk 0:02:36]}  Qe7 {[%clk 0:02:39]} 16. Qc3 {[%clk 0:02:33]}  Ng6 {[%clk 0:02:13]} 17. Qxg7 {[%clk 0:02:25]}  Nxf4 {[%clk 0:01:55]} 18. Qxh8+ {[%clk 0:02:24]}  Kd7 {[%clk 0:01:55]} 19. Rfd1+ {[%clk 0:02:15]}  Bd5 {[%clk 0:01:46]} 20. Rxd5+ {[%clk 0:02:12]}  Nxd5 {[%clk 0:01:46]} 21. Qxa8 {[%clk 0:02:13]}  Nxe3 {[%clk 0:01:46]} 22. Qc6+ {[%clk 0:02:07]}  Kc8 {[%clk 0:01:46]} 23. fxe3 {[%clk 0:02:05]}  Qxe3+ {[%clk 0:01:46]} 24. Kf1 {[%clk 0:02:05]}  Qf4+ {[%clk 0:01:46]} 25. Bf3 {[%clk 0:02:05]}  Qxh2 {[%clk 0:01:47]} 26. Qe8# {[%clk 0:02:03]} 1-0


[Site "https://www.chess.com"]

[Event "Titled Tuesday Blitz August 02 Late 2022"]
[White "Oparin, Grigoriy"]
[Black "Martinez Alcantara, Jose Eduardo"]
[WhiteFideId "24125890"]
[BlackFideId "3805662"]
[WhiteElo "2639"]
[BlackElo "2703"]
[Result "1-0"]
[Round "07"]
[TimeControl "180+1"]
[Date "2022.08.02"]
[WhiteClock "0:00:19"]
[BlackClock "0:00:02"]

1. d4 {[%clk 0:03:00]}  Nf6 {[%clk 0:02:56]} 2. c4 {[%clk 0:03:01]}  e6 {[%clk 0:02:56]} 3. Nf3 {[%clk 0:03:01]}  Bb4+ {[%clk 0:02:54]} 4. Bd2 {[%clk 0:02:59]}  Qe7 {[%clk 0:02:55]} 5. g3 {[%clk 0:02:59]}  Bxd2+ {[%clk 0:02:55]} 6. Qxd2 {[%clk 0:02:59]}  Nc6 {[%clk 0:02:55]} 7. Bg2 {[%clk 0:02:59]}  d5 {[%clk 0:02:56]} 8. O-O {[%clk 0:02:57]}  O-O {[%clk 0:02:56]} 9. Rd1 {[%clk 0:02:57]}  dxc4 {[%clk 0:02:46]} 10. Na3 {[%clk 0:02:55]}  Rd8 {[%clk 0:02:18]} 11. Nxc4 {[%clk 0:02:53]}  Bd7 {[%clk 0:02:16]} 12. Rac1 {[%clk 0:02:50]}  Rac8 {[%clk 0:02:16]} 13. Na5 {[%clk 0:02:43]}  Nxa5 {[%clk 0:01:56]} 14. Qxa5 {[%clk 0:02:44]}  Bc6 {[%clk 0:01:56]} 15. e3 {[%clk 0:02:31]}  Bd5 {[%clk 0:01:46]} 16. Qxa7 {[%clk 0:02:22]}  Ra8 {[%clk 0:01:34]} 17. Qc5 {[%clk 0:02:22]}  Qxc5 {[%clk 0:01:35]} 18. Rxc5 {[%clk 0:02:23]}  Rxa2 {[%clk 0:01:32]} 19. Rxc7 {[%clk 0:02:21]}  Rxb2 {[%clk 0:01:28]} 20. Ne5 {[%clk 0:02:18]}  Bxg2 {[%clk 0:01:09]} 21. Kxg2 {[%clk 0:02:19]}  Nd5 {[%clk 0:01:08]} 22. Rdc1 {[%clk 0:01:52]}  Nxc7 {[%clk 0:01:07]} 23. Rxc7 {[%clk 0:01:52]}  b5 {[%clk 0:01:07]} 24. Rb7 {[%clk 0:01:45]}  h6 {[%clk 0:00:58]} 25. g4 {[%clk 0:01:41]}  Ra8 {[%clk 0:00:55]} 26. Kg3 {[%clk 0:01:40]}  Rb1 {[%clk 0:00:48]} 27. h4 {[%clk 0:01:38]}  b4 {[%clk 0:00:46]} 28. Kf4 {[%clk 0:01:21]}  b3 {[%clk 0:00:40]} 29. f3 {[%clk 0:01:22]}  b2 {[%clk 0:00:29]} 30. Nc4 {[%clk 0:01:12]}  Rh1 {[%clk 0:00:26]} 31. Rxb2 {[%clk 0:01:09]}  Rxh4 {[%clk 0:00:23]} 32. Ne5 {[%clk 0:01:08]}  Rh3 {[%clk 0:00:21]} 33. Rb7 {[%clk 0:01:08]}  Rf8 {[%clk 0:00:20]} 34. Nd7 {[%clk 0:01:08]}  Re8 {[%clk 0:00:18]} 35. Ne5 {[%clk 0:01:08]}  h5 {[%clk 0:00:11]} 36. Rxf7 {[%clk 0:00:58]}  h4 {[%clk 0:00:08]} 37. Kg5 {[%clk 0:00:57]}  Kh7 {[%clk 0:00:05]} 38. Nd7 {[%clk 0:00:48]}  Rd8 {[%clk 0:00:03]} 39. Nf6+ {[%clk 0:00:29]}  Kh8 {[%clk 0:00:03]} 40. Nh5 {[%clk 0:00:29]}  Rg8 {[%clk 0:00:04]} 41. Nf4 {[%clk 0:00:26]}  Rh1 {[%clk 0:00:04]} 42. Ng6+ {[%clk 0:00:27]}  Kh7 {[%clk 0:00:04]} 43. Nxh4 {[%clk 0:00:27]}  Rd8 {[%clk 0:00:02]} 44. Ng6 {[%clk 0:00:27]}  Rd5+ {[%clk 0:00:02]} 45. Ne5 {[%clk 0:00:27]}  Re1 {[%clk 0:00:03]} 46. Kf4 {[%clk 0:00:27]}  Ra1 {[%clk 0:00:02]} 47. Re7 {[%clk 0:00:27]}  Ra6 {[%clk 0:00:03]} 48. g5 {[%clk 0:00:27]}  Rd8 {[%clk 0:00:03]} 49. Kg4 {[%clk 0:00:26]}  Kg8 {[%clk 0:00:03]} 50. g6 {[%clk 0:00:26]}  Rf8 {[%clk 0:00:03]} 51. f4 {[%clk 0:00:25]}  Rc8 {[%clk 0:00:04]} 52. Kf3 {[%clk 0:00:26]}  Rf8 {[%clk 0:00:04]} 53. Ke4 {[%clk 0:00:26]}  Rc8 {[%clk 0:00:04]} 54. Nf7 {[%clk 0:00:23]}  Rb8 {[%clk 0:00:02]} 55. Ng5 {[%clk 0:00:23]}  e5 {[%clk 0:00:02]} 56. Ne6 {[%clk 0:00:21]}  exd4 {[%clk 0:00:03]} 57. exd4 {[%clk 0:00:21]}  Rc8 {[%clk 0:00:01]} 58. f5 {[%clk 0:00:20]}  Rb8 {[%clk 0:00:01]} 59. Rxg7+ {[%clk 0:00:21]}  Kh8 {[%clk 0:00:01]} 60. Rd7 {[%clk 0:00:19]}  Rc8 {[%clk 0:00:01]} 61. Ke5 {[%clk 0:00:20]}  Rb8 {[%clk 0:00:01]} 62. d5 {[%clk 0:00:20]}  Ra1 {[%clk 0:00:01]} 63. Kf6 {[%clk 0:00:20]}  Rh1 {[%clk 0:00:01]} 64. d6 {[%clk 0:00:20]}  Rg8 {[%clk 0:00:01]} 65. Rh7+ {[%clk 0:00:19]}  Rxh7 {[%clk 0:00:01]} 66. gxh7 {[%clk 0:00:20]}  Rd8 {[%clk 0:00:02]} 67. Nxd8 {[%clk 0:00:19]} 1-0


[Site "https://www.chess.com"]

[Event "Titled Tuesday Blitz August 02 Late 2022"]
[White "Pakleza, Zbigniew"]
[Black "Blanco Ronquillo, Humberto L."]
[WhiteFideId "1119290"]
[BlackFideId "3504239"]
[WhiteElo "2467"]
[BlackElo "2423"]
[Result "0-1"]
[Round "07"]
[TimeControl "180+1"]
[Date "2022.08.02"]
[WhiteClock "0:00:06"]
[BlackClock "0:01:06"]

1. d4 {[%clk 0:03:00]}  d5 {[%clk 0:02:59]} 2. Bf4 {[%clk 0:03:00]}  Nf6 {[%clk 0:02:57]} 3. e3 {[%clk 0:03:00]}  e6 {[%clk 0:02:57]} 4. Nd2 {[%clk 0:03:00]}  Bd6 {[%clk 0:02:58]} 5. Bg3 {[%clk 0:03:00]}  O-O {[%clk 0:02:58]} 6. Ngf3 {[%clk 0:02:59]}  c5 {[%clk 0:02:59]} 7. c3 {[%clk 0:02:59]}  Qc7 {[%clk 0:02:59]} 8. Ne5 {[%clk 0:02:59]}  b6 {[%clk 0:02:51]} 9. f4 {[%clk 0:02:59]}  Bb7 {[%clk 0:02:51]} 10. Bd3 {[%clk 0:02:48]}  Ne4 {[%clk 0:02:43]} 11. Bxe4 {[%clk 0:02:48]}  dxe4 {[%clk 0:02:43]} 12. Nec4 {[%clk 0:02:46]}  Be7 {[%clk 0:02:28]} 13. f5 {[%clk 0:02:42]}  Qc8 {[%clk 0:02:26]} 14. fxe6 {[%clk 0:02:36]}  Qxe6 {[%clk 0:02:23]} 15. O-O {[%clk 0:02:30]}  Nd7 {[%clk 0:02:23]} 16. Ne5 {[%clk 0:01:36]}  Nxe5 {[%clk 0:02:22]} 17. Bxe5 {[%clk 0:01:37]}  f6 {[%clk 0:02:17]} 18. Bg3 {[%clk 0:01:33]}  cxd4 {[%clk 0:02:17]} 19. cxd4 {[%clk 0:01:29]}  Bd5 {[%clk 0:02:13]} 20. b3 {[%clk 0:01:03]}  Rac8 {[%clk 0:02:11]} 21. h3 {[%clk 0:00:45]}  Rc3 {[%clk 0:02:08]} 22. Qe2 {[%clk 0:00:41]}  Rfc8 {[%clk 0:02:05]} 23. Rfd1 {[%clk 0:00:38]}  Rc2 {[%clk 0:01:59]} 24. Qa6 {[%clk 0:00:35]}  Qd7 {[%clk 0:01:48]} 25. Be1 {[%clk 0:00:34]}  Bd6 {[%clk 0:01:38]} 26. Qf1 {[%clk 0:00:30]}  Bb8 {[%clk 0:01:32]} 27. Qa6 {[%clk 0:00:13]}  Bb7 {[%clk 0:01:20]} 28. Qa4 {[%clk 0:00:12]}  Bc6 {[%clk 0:01:19]} 29. Qa6 {[%clk 0:00:13]}  Bb5 {[%clk 0:01:14]} 30. Qa3 {[%clk 0:00:10]}  Qc7 {[%clk 0:01:11]} 31. Nf1 {[%clk 0:00:06]}  Bxf1 {[%clk 0:01:10]} 32. Kxf1 {[%clk 0:00:07]}  Qh2 {[%clk 0:01:09]} 33. Bf2 {[%clk 0:00:07]}  Rxf2+ {[%clk 0:01:06]} 34. Kxf2 {[%clk 0:00:06]}  Rc2+ {[%clk 0:01:06]} 0-1


[Site "https://www.chess.com"]

[Event "Titled Tuesday Blitz August 02 Late 2022"]
[White "Swiercz, Dariusz"]
[Black "Kosteniuk, Alexandra"]
[WhiteFideId "1126881"]
[BlackFideId "4128125"]
[WhiteElo "2627"]
[BlackElo "2469"]
[Result "1-0"]
[Round "07"]
[TimeControl "180+1"]
[Date "2022.08.02"]
[WhiteClock "0:00:55"]
[BlackClock "0:00:47"]

1. Nf3 {[%clk 0:02:57]}  d5 {[%clk 0:02:58]} 2. d4 {[%clk 0:02:57]}  Nf6 {[%clk 0:02:58]} 3. Bf4 {[%clk 0:02:57]}  c5 {[%clk 0:02:58]} 4. e3 {[%clk 0:02:56]}  Nc6 {[%clk 0:02:57]} 5. c3 {[%clk 0:02:54]}  Nh5 {[%clk 0:02:57]} 6. dxc5 {[%clk 0:02:53]}  Nxf4 {[%clk 0:02:55]} 7. exf4 {[%clk 0:02:54]}  Bg4 {[%clk 0:02:35]} 8. Nbd2 {[%clk 0:02:53]}  e6 {[%clk 0:02:33]} 9. Bb5 {[%clk 0:02:52]}  Qc7 {[%clk 0:02:31]} 10. Qa4 {[%clk 0:02:49]}  Bxf3 {[%clk 0:02:28]} 11. Nxf3 {[%clk 0:02:48]}  Bxc5 {[%clk 0:02:26]} 12. O-O {[%clk 0:02:47]}  O-O {[%clk 0:02:25]} 13. Rad1 {[%clk 0:02:39]}  a6 {[%clk 0:02:20]} 14. Bd3 {[%clk 0:02:38]}  b5 {[%clk 0:02:13]} 15. Qc2 {[%clk 0:02:38]}  g6 {[%clk 0:02:09]} 16. g3 {[%clk 0:02:37]}  Rfc8 {[%clk 0:02:06]} 17. Qe2 {[%clk 0:02:37]}  Bd6 {[%clk 0:01:54]} 18. h4 {[%clk 0:02:35]}  h5 {[%clk 0:01:47]} 19. Rfe1 {[%clk 0:02:30]}  Ne7 {[%clk 0:01:40]} 20. Ng5 {[%clk 0:02:27]}  Qd7 {[%clk 0:01:33]} 21. a3 {[%clk 0:02:12]}  Rc6 {[%clk 0:01:31]} 22. Qf3 {[%clk 0:02:03]}  Bc7 {[%clk 0:01:29]} 23. Bb1 {[%clk 0:01:47]}  Bd6 {[%clk 0:01:06]} 24. g4 {[%clk 0:01:35]}  hxg4 {[%clk 0:01:04]} 25. Qxg4 {[%clk 0:01:36]}  Rc4 {[%clk 0:01:03]} 26. Rd4 {[%clk 0:01:37]}  Rxd4 {[%clk 0:01:02]} 27. cxd4 {[%clk 0:01:37]}  Nf5 {[%clk 0:01:00]} 28. h5 {[%clk 0:01:32]}  Re8 {[%clk 0:00:49]} 29. Kg2 {[%clk 0:01:05]}  Kg7 {[%clk 0:00:49]} 30. hxg6 {[%clk 0:00:56]}  fxg6 {[%clk 0:00:47]} 31. Nxe6+ {[%clk 0:00:55]} 1-0


[Site "https://www.chess.com"]

[Event "Titled Tuesday Blitz August 02 Late 2022"]
[White "Valner, Uku"]
[Black "Drygalov, Sergey"]
[WhiteFideId "4502205"]
[BlackFideId "24171743"]
[WhiteElo "2287"]
[BlackElo "2523"]
[Result "0-1"]
[Round "07"]
[TimeControl "180+1"]
[Date "2022.08.02"]
[WhiteClock "0:00:09"]
[BlackClock "0:01:48"]

1. e4 {[%clk 0:02:53]}  c5 {[%clk 0:02:59]} 2. Nc3 {[%clk 0:02:53]}  d6 {[%clk 0:03:00]} 3. g3 {[%clk 0:02:53]}  Nf6 {[%clk 0:02:59]} 4. Bg2 {[%clk 0:02:54]}  g6 {[%clk 0:03:00]} 5. d3 {[%clk 0:02:54]}  Bg7 {[%clk 0:03:01]} 6. f4 {[%clk 0:02:54]}  O-O {[%clk 0:03:01]} 7. Nf3 {[%clk 0:02:55]}  Nc6 {[%clk 0:03:02]} 8. O-O {[%clk 0:02:55]}  Rb8 {[%clk 0:03:02]} 9. h3 {[%clk 0:02:55]}  b5 {[%clk 0:03:02]} 10. Be3 {[%clk 0:02:55]}  b4 {[%clk 0:03:02]} 11. Ne2 {[%clk 0:02:56]}  a5 {[%clk 0:03:03]} 12. Qd2 {[%clk 0:02:55]}  Ba6 {[%clk 0:03:03]} 13. g4 {[%clk 0:02:54]}  a4 {[%clk 0:03:03]} 14. Rab1 {[%clk 0:02:51]}  Nd7 {[%clk 0:03:03]} 15. Rfd1 {[%clk 0:02:43]}  e6 {[%clk 0:03:00]} 16. d4 {[%clk 0:02:40]}  Nb6 {[%clk 0:02:45]} 17. b3 {[%clk 0:02:38]}  c4 {[%clk 0:02:44]} 18. f5 {[%clk 0:02:18]}  exf5 {[%clk 0:02:40]} 19. exf5 {[%clk 0:02:17]}  Nd5 {[%clk 0:02:40]} 20. Bg5 {[%clk 0:02:10]}  Qb6 {[%clk 0:02:40]} 21. bxc4 {[%clk 0:01:59]}  Bxc4 {[%clk 0:02:39]} 22. Nf4 {[%clk 0:01:56]}  Nc3 {[%clk 0:02:33]} 23. f6 {[%clk 0:01:38]}  Bh8 {[%clk 0:02:31]} 24. a3 {[%clk 0:01:22]}  Nxb1 {[%clk 0:02:28]} 25. Rxb1 {[%clk 0:01:21]}  b3 {[%clk 0:02:26]} 26. cxb3 {[%clk 0:01:20]}  axb3 {[%clk 0:02:27]} 27. Qc3 {[%clk 0:01:11]}  d5 {[%clk 0:02:27]} 28. Nd3 {[%clk 0:01:09]}  Rfe8 {[%clk 0:02:23]} 29. Kh1 {[%clk 0:01:02]}  h6 {[%clk 0:02:15]} 30. Bf4 {[%clk 0:00:56]}  Bxf6 {[%clk 0:02:08]} 31. Bxb8 {[%clk 0:00:56]}  Qxb8 {[%clk 0:02:09]} 32. Nc5 {[%clk 0:00:40]}  Qg3 {[%clk 0:02:08]} 33. Nxb3 {[%clk 0:00:29]}  Re2 {[%clk 0:02:01]} 34. Rg1 {[%clk 0:00:26]}  Qf4 {[%clk 0:01:58]} 35. Nbd2 {[%clk 0:00:21]}  Re3 {[%clk 0:01:53]} 36. Qc1 {[%clk 0:00:19]}  Nxd4 {[%clk 0:01:53]} 37. Nxc4 {[%clk 0:00:18]}  dxc4 {[%clk 0:01:51]} 38. Nxd4 {[%clk 0:00:15]}  Qxd4 {[%clk 0:01:50]} 39. Rd1 {[%clk 0:00:12]}  Rd3 {[%clk 0:01:49]} 40. Rxd3 {[%clk 0:00:09]}  cxd3 {[%clk 0:01:50]} 41. Bf3 {[%clk 0:00:09]}  Qf2 {[%clk 0:01:48]} 0-1


[Site "https://www.chess.com"]

[Event "Titled Tuesday Blitz August 02 Late 2022"]
[White "Wachinger, Nikolas"]
[Black "Sjugirov, Sanan"]
[WhiteFideId "12962791"]
[BlackFideId "4189302"]
[WhiteElo "2253"]
[BlackElo "2609"]
[Result "0-1"]
[Round "07"]
[TimeControl "180+1"]
[Date "2022.08.02"]
[WhiteClock "0:01:13"]
[BlackClock "0:01:56"]

1. d4 {[%clk 0:03:00]}  Nf6 {[%clk 0:02:59]} 2. Nf3 {[%clk 0:03:00]}  e6 {[%clk 0:03:00]} 3. Bf4 {[%clk 0:03:00]}  Be7 {[%clk 0:03:01]} 4. Nbd2 {[%clk 0:02:56]}  Nh5 {[%clk 0:02:57]} 5. Be3 {[%clk 0:02:50]}  d5 {[%clk 0:02:55]} 6. c4 {[%clk 0:02:40]}  O-O {[%clk 0:02:55]} 7. Qc2 {[%clk 0:02:38]}  Nc6 {[%clk 0:02:52]} 8. a3 {[%clk 0:02:37]}  Bd7 {[%clk 0:02:37]} 9. g3 {[%clk 0:02:10]}  Nf6 {[%clk 0:02:27]} 10. Bg2 {[%clk 0:02:03]}  Ng4 {[%clk 0:02:26]} 11. Bf4 {[%clk 0:01:58]}  g5 {[%clk 0:02:26]} 12. h3 {[%clk 0:01:51]}  Nxf2 {[%clk 0:02:26]} 13. Kxf2 {[%clk 0:01:47]}  gxf4 {[%clk 0:02:26]} 14. gxf4 {[%clk 0:01:47]}  Bf6 {[%clk 0:02:19]} 15. e3 {[%clk 0:01:45]}  Kh8 {[%clk 0:02:17]} 16. h4 {[%clk 0:01:39]}  Rg8 {[%clk 0:02:13]} 17. Ng5 {[%clk 0:01:38]}  Rg7 {[%clk 0:02:13]} 18. cxd5 {[%clk 0:01:37]}  exd5 {[%clk 0:02:05]} 19. Bxd5 {[%clk 0:01:38]}  Nxd4 {[%clk 0:02:05]} 20. exd4 {[%clk 0:01:26]}  Bxd4+ {[%clk 0:02:06]} 21. Kf3 {[%clk 0:01:27]}  Bg4+ {[%clk 0:01:56]} 22. Kxg4 {[%clk 0:01:26]}  Qxd5 {[%clk 0:01:56]} 23. Qe4 {[%clk 0:01:16]}  Qd7+ {[%clk 0:01:56]} 24. Qf5 {[%clk 0:01:13]}  h5+ {[%clk 0:01:56]} 0-1


[Site "https://www.chess.com"]